Cogmind - Beta 13 @@@ ROGUE MODE // 2024.05.07 @ 22:09:03 Player: CONM Result: Destroyed by G-47 Trooper with Particle Gun Performance ------------- Evolutions (2) 1000 Regions Visited (4) 800 Robots Destroyed (33) 165 Value Destroyed (884) 884 Prototype IDs (0) 0 Alien Tech Used (0) 0 Bonus (19) 19 TOTAL SCORE: 2868 Bonus ------- High Alert Combat Kills 19 Cogmind --------- Core Integrity 0/550 Matter 33/400 Energy 100/100 System Corruption 2% Temperature Cool (9) Movement Core (1400) Ox27 Location -8/Materials Parts ------- > --- POWER (1) -------- (None) > --- PROPULSION (2) --- (None) > --- UTILITY (4) ------ Huge Storage Unit Medium Matter Pod > --- WEAPON (4) ------- (None) > --- INVENTORY (25) --- Ion Engine Ion Engine Light Ion Engine Faulty Cooled Ion Engine Light Nuclear Core Heat Sink Medium Storage Unit Improved Signal Interpreter Seismic Detector Seismic Detector Core Shielding Light Armor Plating Rocket Launcher Missile Launcher Missile Launcher Concussive RPG (1) Concussive RPG (1) Concussive RPG (1) Concussive RPG (1) Peak State ------------ > --- POWER ------------ Light Nuclear Core > --- PROPULSION ------- Wheel Armored Wheel > --- UTILITY ---------- Huge Storage Unit Medium Matter Pod Medium Armor Plating Medium Armor Plating > --- WEAPON ----------- Missile Launcher Missile Launcher Missile Launcher Missile Launcher > --- INVENTORY -------- Ion Engine Ion Engine Light Ion Engine Cooled Ion Engine Aluminum Leg Heat Sink Medium Storage Unit Seismic Detector Seismic Detector Core Shielding Light Armor Plating Rocket Launcher Missile Launcher Missile Launcher Concussive RPG Concussive RPG Concussive RPG Concussive RPG [Rating: 27] Favorites ----------- Power Ion Engine Engine Ion Engine Power Core Light Nuclear Core Propulsion Aluminum Leg Leg Aluminum Leg Wheel Wheel Utility Medium Armor Plating Device Tractor Beam Storage Huge Storage Unit Protection Medium Armor Plating Weapon Missile Launcher Energy Gun Medium Laser Ballistic Gun Assault Rifle Launcher Missile Launcher Special Weapon Mining Laser Build | -11 -10 -10 -9 -8 ------- Run | Yrd Mat Min Mat Mat Slots Evolved 4 | . . . 2 2 Power . | . . . . . Propulsion . | . . . . . Utility 2 | . . . 2 . Weapon 2 | . . . . 2 Parts Attached 29 | 7 4 1 13 4 Power 3 | 1 . . 1 1 Engine 2 | 1 . . . 1 Core 1 | . . . 1 . Reactor . | . . . . . Propulsion 5 | 2 . . 2 1 Treads . | . . . . . Leg 3 | 2 . . . 1 Wheel 2 | . . . 2 . Hover . | . . . . . Flight . | . . . . . Utility 11 | 1 4 . 6 . Device 1 | . 1 . . . Storage 6 | 1 3 . 2 . Processor . | . . . . . Hackware . | . . . . . Protection 4 | . . . 4 . Artifact . | . . . . . Weapon 10 | 3 . 1 4 2 Energy Gun 2 | 2 . . . . Energy Cannon . | . . . . . Ballistic Gun 1 | 1 . . . . Ballistic Cannon . | . . . . . Launcher 5 | . . . 3 2 Special Weapon 2 | . . 1 1 . Impact Weapon . | . . . . . Slashing Weapon . | . . . . . Piercing Weapon . | . . . . . Special Melee Weapon . | . . . . . Unidentified Prototypes . | . . . . . Parts Lost 14 | . . . 4 10 Power 1 | . . . . 1 Propulsion 4 | . . . 1 3 Utility 2 | . . . . 2 Weapon 7 | . . . 3 4 Highest Loss Streak 8 | . . . 1 8 To Critical Strikes . | . . . . . Average Slot Usage (%) 85 | . 91 100 85 72 Engine 7 | . 14 14 4 3 Core 3 | . . . 6 4 Leg 11 | . 28 28 5 2 Wheel 8 | . . . 13 9 Device 5 | . 6 14 7 . Storage 14 | . 14 14 13 18 Protection 10 | . . . 14 12 Energy Gun 3 | . 14 2 . . Ballistic Gun 6 | . 14 14 5 . Launcher 10 | . . . 11 23 Special Weapon 1 | . . 11 2 . Naked Turns . | . . . . . Heaviest Build 125 | 14 21 20 113 125 Greatest Support 22 | 20 20 20 22 22 Greatest Overweight (x) 27 | . 1 . 5 27 Average Overweight (x) 2 | . . . 3 8 Largest Inventory Capacity 25 | 8 10 10 25 25 Average Capacity 16 | 6 9 10 19 25 Most Carried 20 | 3 10 10 20 20 Average Carried 10 | 1 5 10 11 18 Final Capacity 25 | 8 10 10 25 25 Final Carried 20 | 3 10 10 20 19 Class Distribution -------------------- 87% | Mutant 12% | Bomber Dominant Class ---------------- Mutant | -10/Materials Mutant | -10/Mines Mutant | -9/Materials Bomber | -8/Materials Resources | -11 -10 -10 -9 -8 ----------- Run | Yrd Mat Min Mat Mat Matter Collected 725 | 181 153 . 363 28 Remotely 342 | . . . 342 . Salvage Created 740 | . 153 . 419 168 Parts 50 | . 7 . 33 10 Haulers Intercepted 4 | . . . 3 1 Recyclers Shooed 4 | . 1 . 3 . Parts Field Recycled . | . . . . . Retrieved Matter . | . . . . . Parts Self-Destructed . | . . . . . Prevented . | . . . . . Kills | -11 -10 -10 -9 -8 ------- Run | Yrd Mat Min Mat Mat Combat Hostiles Destroyed 24 | . 2 . 11 11 Guns 2 | . 2 . . . AOE 22 | . . . 11 11 Classes Destroyed 7 | . 2 . 3 2 Builder 3 | . . . 3 . Tunneler 1 | . . . . 1 Hauler 4 | . . . 3 1 Recycler 1 | . 1 . . . Swarmer 6 | . . . . 6 Grunt 16 | . 2 . 9 5 Sentry 2 | . . . 2 . Best Kill Streak 13 | . 3 . 8 13 Combat Bots Only 11 | . 2 . 5 11 Max Kills in Single Turn 4 | . 1 . 2 4 Gunslinging . | . . . . . Exploded 4 | . . . 2 4 Melee . | . . . . . Uniques/NPCs Destroyed . | . . . . . Combat | -11 -10 -10 -9 -8 -------- Run | Yrd Mat Min Mat Mat Hostile Shots Fired 222 | . 21 8 37 156 Missed 52 | . 6 2 8 36 Damage Taken 2170 | . 163 67 544 1396 Core 706 | . 67 21 61 557 Absorbed by Shields . | . . . . . Redirected to Shielding 10 | . . . 10 . Core Remaining (%) 82 | 100 . 64 84 . Volleys Fired 58 | . 21 2 28 7 Largest 4 | . 2 2 2 4 Hottest 144 | . 70 120 72 144 Shots Fired 98 | . 42 4 42 10 Gun 59 | . 42 2 15 . Cannon . | . . . . . Launcher 37 | . . . 27 10 Special 2 | . . 2 . . Kinetic 38 | . 21 2 15 . Thermal 23 | . 21 2 . . Explosive 37 | . . . 27 10 Electromagnetic . | . . . . . Robot Hit Streak 11 | . 11 . 3 4 Robot Miss Streak 3 | . 2 . 3 3 Penetration Max . | . . . . . Secondary Targets . | . . . . . Shots Hit Robots 50 | . 27 . 20 3 Core Hits 56 | . 7 . 29 20 Critical Kills . | . . . . . Critical Parts Destroyed . | . . . . . Critical Strikes 2 | . 2 . . . Burn 2 | . 2 . . . Melee Attacks . | . . . . . Impact . | . . . . . Slashing . | . . . . . Piercing . | . . . . . Sneak Attacks . | . . . . . Combat Hostiles . | . . . . . Follow-up Attacks . | . . . . . Damage Inflicted 2835 | . 357 . 1195 1283 Guns 456 | . 350 . 106 . Cannons . | . . . . . Explosions 2366 | . . . 1089 1277 Melee . | . . . . . Ramming 13 | . 7 . . 6 Kinetic 307 | . 201 . 106 . Thermal 149 | . 149 . . . Explosive 2323 | . . . 1089 1234 Electromagnetic 43 | . . . . 43 Impact . | . . . . . Slashing . | . . . . . Piercing . | . . . . . Highest Corruption 2 | . . . . 2 Average Corruption 2 | . . . . 2 Corruption Purged . | . . . . . Corruption Blocked . | . . . . . Effects 1 | . . . . 1 Energy Discharges 1 | . . . . 1 Overload Shots . | . . . . . Overflow Damage 124 | . . . 48 76 Projectiles . | . . . . . Explosions 124 | . . . 48 76 Melee . | . . . . . Knockbacks . | . . . . . Impact . | . . . . . Kinetic . | . . . . . Secondary . | . . . . . Self-Inflicted Damage 230 | . . . 159 71 Shots 6 | . . . 3 3 Rammed 2 | . . . . 2 Targets Rammed 5 | . 3 . . 2 Kicked 3 | . 3 . . . Crushed . | . . . . . Highest Temperature 162 | . 162 34 60 72 Average Temperature 36 | . 53 15 15 23 Received Heat Transfer 1104 | . 90 36 159 819 Siege Activations . | . . . . . Robots Corrupted . | . . . . . Combat Hostiles . | . . . . . Parts Fried . | . . . . . Impact Corruptions . | . . . . . Robots Melted . | . . . . . Combat Hostiles . | . . . . . Parts Melted 1 | . 1 . . . Heat Transferred 592 | . 592 . . . Parts Sabotaged . | . . . . . Parts Stolen . | . . . . . Parts Stripped . | . . . . . Power Chain Reactions . | . . . . . Alert | -11 -10 -10 -9 -8 ------- Run | Yrd Mat Min Mat Mat Peak Influence 513 | . 60 40 442 513 Initial 186 | . . 23 15 186 Average 218 | . 32 36 281 408 Maximum Alert Level 2 | . . . 2 2 Low Security (%) 44 | 100 100 100 15 19 Level 1 33 | . . . 65 7 Level 2 21 | . . . 18 73 Level 3 . | . . . . . Level 4 . | . . . . . Level 5 . | . . . . . High Security . | . . . . . Max Security . | . . . . . Squads Dispatched 7 | . 1 . 3 3 Investigation 1 | . . . 1 . Extermination . | . . . . . Reinforcement 3 | . 1 . 2 . Assault . | . . . . . Garrison 3 | . . . . 3 Intercept . | . . . . . Searches Triggered . | . . . . . Construction Impeded . | . . . . . Haulers Reinforced . | . . . . . Active Scanning Responses . | . . . . . Cargo Convoy Interrupts . | . . . . . Stealth | -11 -10 -10 -9 -8 --------- Run | Yrd Mat Min Mat Mat Distress Signals 3 | . . . 2 1 Communications Jammed . | . . . . . Distress Signals . | . . . . . Times Spotted 45 | . 6 2 22 15 Peak Tracking Total 8 | . 2 2 5 8 Tactical Retreats 2 | . . . 1 1 Traps | -11 -10 -10 -9 -8 ------- Run | Yrd Mat Min Mat Mat Traps Triggered 1 | . . . 1 . Indirectly . | . . . . . Trap Hack Attempts . | . . . . . Triggered . | . . . . . Disarmed . | . . . . . Reprogrammed . | . . . . . Reused . | . . . . . Traps Extracted . | . . . . . Installed . | . . . . . Triggered . | . . . . . Machines | -11 -10 -10 -9 -8 ---------- Run | Yrd Mat Min Mat Mat Machines Disabled 8 | . 1 . 6 1 Max in Single Turn 2 | . 1 . 2 1 Machines Repaired . | . . . . . Machines Dismantled . | . . . . . Machines Sabotaged . | . . . . . Overloaded Fab Kills . | . . . . . Hacking | -11 -10 -10 -9 -8 --------- Run | Yrd Mat Min Mat Mat Machines Accessed 1 | . . . 1 . Terminals 1 | . . . 1 . Fabricators . | . . . . . Repair Stations . | . . . . . Recycling Units . | . . . . . Scanalyzers . | . . . . . Garrison Access . | . . . . . Total Hacks 1 | . . . 1 . Successful 1 | . . . 1 . Failed . | . . . . . Catastrophic . | . . . . . Database Lockouts . | . . . . . Manual . | . . . . . Terminals 1 | . . . 1 . Fabricators . | . . . . . Repair Stations . | . . . . . Recycling Units . | . . . . . Scanalyzers . | . . . . . Garrison Access . | . . . . . Terminal Hacks 1 | . . . 1 . Level Access Points 1 | . . . 1 . Fabricator Hacks . | . . . . . Repair Station Hacks . | . . . . . Recycling Unit Hacks . | . . . . . Scanalyzer . | . . . . . Garrison Access Hacks . | . . . . . Unauthorized Hacks . | . . . . . Terminals . | . . . . . Fabricators . | . . . . . Repair Stations . | . . . . . Recycling Units . | . . . . . Scanalyzers . | . . . . . Garrison Access . | . . . . . Data Cores Recovered . | . . . . . Used . | . . . . . Hacking Detections . | . . . . . Full Trace Events . | . . . . . Feedback Events . | . . . . . Feedback Blocked . | . . . . . Robot Schematics Acquired . | . . . . . Robots Built . | . . . . . Authchips . | . . . . . Time . | . . . . . Total Robot Build Rating . | . . . . . Part Schematics Acquired . | . . . . . Parts Built . | . . . . . Authchips . | . . . . . Time . | . . . . . Total Part Build Rating . | . . . . . Parts Repaired . | . . . . . Time . | . . . . . Parts Recycled . | . . . . . Recycled Matter . | . . . . . Retrieved Matter . | . . . . . Retrieved Components . | . . . . . Parts Scanalyzed . | . . . . . Part Schematics Acquired . | . . . . . Parts Damaged . | . . . . . Bothacking | -11 -10 -10 -9 -8 ------------ Run | Yrd Mat Min Mat Mat Used RIF Installer . | . . . . . Robots Hacked . | . . . . . Non-combat . | . . . . . Combat . | . . . . . Robot Hacks Applied . | . . . . . Relay Couplers Released . | . . . . . Fabnet Peak Effective % . | . . . . . Robots Rewired . | . . . . . Allies Hacked . | . . . . . Hacks Repelled . | . . . . . Allies | -11 -10 -10 -9 -8 -------- Run | Yrd Mat Min Mat Mat Total Allies . | . . . . . Largest Group . | . . . . . Highest-Rated Group . | . . . . . Highest-Rated Ally . | . . . . . Total Orders . | . . . . . Ally Attacks . | . . . . . Total Damage . | . . . . . Kills . | . . . . . Allies Corrupted . | . . . . . Allies Melted . | . . . . . Intel | -11 -10 -10 -9 -8 ------- Run | Yrd Mat Min Mat Mat Robot Analysis Total . | . . . . . Derelict Logs Recovered . | . . . . . Drone Launches . | . . . . . Drone Recoveries . | . . . . . Exploration | -11 -10 -10 -9 -8 ------------- Run | Yrd Mat Min Mat Mat Turns Passed 1533 | 92 369 52 751 269 Spaces Moved 834 | 69 239 34 396 96 Core 8 | 7 . . . 1 Treads . | . . . . . Legs 473 | 62 239 34 130 8 Wheels 353 | . . . 266 87 Hover . | . . . . . Flight . | . . . . . Fastest Speed 50 | 50 120 120 100 160 Average Speed 154 | 112 120 120 161 255 Slowest Speed 1400 | 120 190 120 260 1400 Overloaded Moves . | . . . . . Propulsion Burnouts . | . . . . . Robots Hopped . | . . . . . Cave-ins Triggered . | . . . . . Exploration Rate (%) 23 | 4 33 14 53 14 Regions Visited 4 Branch Regions 1 Pre-discovered Areas . | . . . . . Known Exits Taken 1 | . . . 1 . Unknown Exits Taken 3 | 1 1 1 . . Scrap Searched . | . . . . . Spaces Dug 2 | . . 2 . . Terrain Destroyed 279 | . . 2 213 64 Melee . | . . . . . Projectile 2 | . . 2 . . AOE 277 | . . . 213 64 Terrain Rammed . | . . . . . Walls Destroyed . | . . . . . Machines Disabled . | . . . . . Actions | -11 -10 -10 -9 -8 --------- Run | Yrd Mat Min Mat Mat Total 965 | 80 277 36 462 110 Wait 2 | . . . 2 . Move 830 | 68 238 33 395 96 Hop . | . . . . . Pick Up 31 | 4 9 . 17 1 Fast Attach 11 | 6 1 . 4 . Attach 9 | . 2 . 4 3 Detach . | . . . . . Swap 9 | 1 1 1 5 1 Drop 10 | 1 2 . 7 . Fire 58 | . 21 2 28 7 Melee . | . . . . . Ram 2 | . . . . 2 Kick 3 | . 3 . . . Crush . | . . . . . Escape Stasis . | . . . . . Rewire . | . . . . . Trap . | . . . . . Miscellaneous . | . . . . . Route ------- -11/Scrapyard -10/Materials (discovered 2 exits: [*Min x2]) -10/Mines -9/Materials (discovered 4 exits: *Mat x3 / [*Min]) -8/Materials History --------- Turn | Location | Event 10 | -11/Scrapyard | Discovered new exit (range 16) 93 | -11/Scrapyard | Entered Materials 247 | -10/Materials | Discovered new exit (range 7) 265 | -10/Materials | Discovered new exit (range 16) 330 | -10/Materials | Build established: Mutant 462 | -10/Materials | Entered Mines 489 | -10/Mines | Discovered new exit (range 14) 514 | -10/Mines | Entered Materials 514 | -9/Materials | Evolved 2 slots: Utility x2 569 | -9/Materials | Identified exit to Materials 863 | -9/Materials | Discovered new exit (range 7) 1265 | -9/Materials | Entered another Materials area 1265 | -8/Materials | Evolved 2 slots: Weapon x2 1317 | -8/Materials | Garrison activated, responded to threat 1378 | -8/Materials | Destroyed 11 combat bots 1504 | -8/Materials | Core integrity fell below 50% 1528 | -8/Materials | Core integrity fell below 20% 1534 | -8/Materials | Destroyed by G-47 Trooper with Particle Gun Last Messages --------------- 01444_ S-10 Pest heat short circuits Flight Unit. 01453_ Med. Armor Plating destroyed. 01453_ Critical hit (Burn: +37). 01464_ Missile Launcher destroyed. 01466_ Wheel destroyed. 01467_ Missile Launcher destroyed. 01470_ T-07 Excavator is excavating. 01480_ Missile Launcher destroyed. 01480_ Critical hit (Burn: +37). 01483_ The unstable cave ceiling collapses. 01487_ T-07 Excavator is excavating. 01487_ U-05 Engineer builds a Wall. 01491_ T-07 Excavator is excavating. 01493_ Critical hit (Burn: +37). 01495_ System corrupted: Energy discharge (-28). 01495_ The unstable cave ceiling collapses. 01500_ Lgt. Deuterium Engine destroyed. 01517_ G-47 Trooper emerges from the garrison. 01521_ Aluminum Leg destroyed. Map ----- +----------------------------------------------------+ | ??????????????????????????????????? | | ??????????????????????????????????? | | ??????????????????????????????????? | | ??????????????????????????????????? | | ??????????????????????????????????? | | ??????????????????????????????????? | | ??????????????????????????????????? | | ##########????????????######??????? | | # #???????????#= ??????? | | # #???????????# """ #???? | | # #???????????# "G" #???? | | # #######?????# " " #???? | | # # ?????# #???? | | # ]!! # ????# !!! #???? | | # ]!! # ##### !!! #???? | | # ! # # !!! #???? | | # gY ?????? | | ## #### # # #???????? | | [ [ [[[ % ######### | | = [ # | | ## ## ### ## * # ### # # | | # # # # | | ## # # #gs# # | | ?# =] # ## ### # # | | ?# =] # ####?# ; # | | ?# =] # #????##@# # | | ??# # #?????# # # | | ??# # #?????# # # | | ??# # #?????# # # | | ??# # #?????# # # | | ??# ##########?????# ######### | | ??# #??????????????# #???????? | | ??# #??????????????# #???????? | | ?? #??????????????# #???????? | | ??########??????????????# #???????? | | ????????????????????????# #???????? | | ????????????????????????# #???????? | | ????????????????????????# #???????? | | ????????????????????????# #???????? | | ????????????????????????# #???????? | | ????????????????????????# #???????? | | ????????????????????????# #???????? | | ????????????????????????# #???????? | | ??????????????????####### #???????? | | ??????????????????# #???????? | | ??????????????????# #???????? | | ??????????????????# #???????? | | ??????????????????# #####???????? | | ??????????????????# ????????????? | | ??????????????????# ?????????????? | +----------------------------------------------------+ Best States ------------- Heat Dissipation 31 Energy Generation 14 Energy Capacity 250 Matter Stores 300 Matter Capacity 400 Sight Range 16 Terrain Scan Density 10 Armor Coverage 450 Core Shielding 20 Evasion (%) 55 Item Schematics ----------------- None Robot Schematics ------------------ None Fabricated ------------ Nothing Alien Tech Used ----------------- None Achievements -------------- None Challenges ------------ None Game ------ Seed RainbowLayeredAnalyzer Manual? 0 Play Time 00:20:31 Cumulative 13.3 hours Start 2024.05.07 @ 20:00:17 End 2024.05.07 @ 22:09:03 Sessions 1 Manual Loads 0 Difficulty Rogue Special Mode None Game No. 30 Rogue 30 Adventurer 0 Explorer 0 Win Type - Total 0 Types 0/0/0/0/0/0/0/0/0 Lore% 14 Gallery% 13 Achievement% 12 Wizard Run 0 Options --------- Layout 1 ASCII 0 Keyboard 0 Movement Arrows Keybinds 0 Fullscreen 1 Font 24/Smallcaps Map View 50x40 Zoom Use 0% Tactical HUD 1 Map Filters NONE Filters NONE Steam 1 RUN: 88cd2545-f2c9-46a1-80c1-933eb6c8cf1a